bitfinex/quotes_ETHUSD_20250605
["timestamp","ask_amount","ask_price","bid_price","bid_amount"]
[1749135856367,0.8231,2590.0,2589.7,17.346]
[1749135856663,16.8231,2590.0,2589.7,17.346]
[1749135856841,0.8231,2590.0,2589.7,17.346]
[1749135857372,0.8231,2590.0,2589.7,21.2073361]
[1749135857865,7.78,2590.1,2589.7,17.346]
[1749135858365,3.86111493,2590.0,2589.7,17.346]
[1749135858725,3.86111493,2590.0,2589.8,9.008]
[1749135858988,3.86111493,2590.0,2589.7,8.337]
[1749135858989,3.86111493,2590.0,2589.9,2.038]
[1749135859150,29.26040317,2590.0,2589.9,2.038]
[1749135859357,20.75681493,2590.0,2589.9,9.007]
[1749135859563,24.12162471,2590.0,2589.9,9.007]
[1749135859880,20.75700203,2589.8,2589.7,10.375]
[1749135860052,28.53700203,2589.8,2589.7,10.375]
[1749135860776,37.04059027,2589.8,2589.7,10.375]
[1749135860956,37.71620098,2589.8,2589.7,10.375]
[1749135861876,38.08387434,2589.8,2589.7,10.375]
[1749135862243,37.71620098,2589.8,2589.7,10.375]
[1749135862457,38.08401311,2589.8,2589.7,10.375]
[1749135862781,38.08401034,2589.8,2589.7,8.337]
[1749135863595,38.08401034,2589.8,2589.7,10.375]
[1749135864194,4.41145113,2589.7,2588.9,8.337]
[1749135864345,12.36608341,2589.0,2588.9,8.337]
[1749135864545,28.36608341,2589.0,2588.9,17.341]
[1749135864785,16.0,2589.0,2588.9,17.341]
[1749135864965,16.8503,2589.4,2588.9,17.341]
[1749135865265,16.0,2589.5,2588.9,17.341]
[1749135865601,19.86176195,2589.5,2588.9,22.93766244]
[1749135865806,3.86249517,2589.0,2588.9,8.337]
[1749135865985,19.86240967,2589.1,2588.9,17.341]
[1749135866299,21.11282093,2589.1,2588.9,17.341]
[1749135866451,20.75849517,2589.0,2588.9,10.375]
[1749135866658,21.1270931,2589.0,2588.9,8.337]
[1749135866856,21.1270931,2589.0,2588.9,17.34]
[1749135867095,24.49190288,2589.0,2588.9,17.34]
[1749135867603,20.62940771,2589.0,2588.9,17.34]
[1749135867811,24.49190288,2589.0,2588.9,17.34]
[1749135868153,24.49193178,2589.0,2588.9,17.34]
[1749135868353,16.896,2589.0,2588.9,17.34]
[1749135868791,12.36571075,2589.3,2588.9,17.34]
[1749135868792,0.8806,2589.3,2588.9,17.34]
[1749135868995,16.8806,2589.3,2588.9,17.34]
[1749135869202,17.24916894,2589.3,2588.9,17.34]
[1749135869583,21.11122496,2589.3,2588.9,17.34]
[1749135869789,8.6495,2589.6,2589.1,3.86219783]
[1749135869961,8.6495,2589.6,2589.2,6.964]
[1749135870163,16.0,2589.5,2589.3,6.964]
[1749135871057,19.86175882,2589.5,2589.3,6.964]
[1749135871373,3.8618985,2589.4,2588.9,10.375]
[1749135871557,20.23058108,2589.5,2589.0,6.963]
[1749135871757,19.86181147,2589.5,2589.0,6.963]
[1749135872158,16.36883021,2589.5,2589.0,6.963]
[1749135872402,20.23058834,2589.5,2589.0,6.963]
[1749135872753,3.86206823,2589.3,2588.9,10.375]
[1749135872875,3.86233098,2589.2,2589.1,6.963]
[1749135873192,2.40926479,2589.3,2589.1,6.963]
[1749135873401,6.27140911,2589.3,2589.2,6.962]
[1749135873616,2.40926479,2589.3,2589.2,6.962]
[1749135874699,6.27131244,2589.3,2589.2,6.962]
[1749135874898,2.40926479,2589.3,2589.2,6.962]
[1749135875211,3.86226622,2589.2,2588.9,10.375]
[1749135875408,4.91250711,2589.2,2588.9,10.375]
[1749135875611,4.91250711,2589.2,2589.0,6.961]
[1749135875777,3.86234598,2589.1,2589.0,6.961]
[1749135876101,4.9125189,2589.2,2589.0,6.961]
[1749135876277,1.05024089,2589.2,2589.0,6.961]
[1749135876476,6.27145127,2589.3,2589.0,6.961]
[1749135876790,2.40926479,2589.3,2589.1,6.96]
[1749135877185,6.27131886,2589.3,2589.1,6.96]
[1749135877388,6.27131886,2589.3,2588.9,8.337]
[1749135877389,3.86249517,2589.0,2588.9,8.337]
[1749135877593,16.0,2589.1,2588.9,17.336]
[1749135877808,17.20870909,2589.1,2588.9,17.336]
[1749135878100,3.86231323,2589.2,2588.9,8.337]
[1749135878410,3.8622067,2589.2,2589.0,8.998]
[1749135878699,3.86234598,2589.1,2588.9,8.337]
[1749135878904,13.54023256,2589.1,2589.0,8.998]
[1749135879062,9.67782609,2589.1,2589.0,8.998]
[1749135879396,19.86227767,2589.2,2589.0,8.998]
[1749135879583,19.34020668,2589.2,2589.0,8.998]
[1749135880170,9.67782609,2589.4,2589.0,8.998]
[1749135880372,16.0,2589.4,2589.0,8.998]
[1749135880593,19.86196924,2589.4,2589.0,8.998]
[1749135880791,20.2310704,2589.4,2589.0,8.998]
[1749135880992,19.86196924,2589.4,2589.0,8.998]
[1749135881191,20.2310625,2589.4,2589.0,8.998]
[1749135881397,19.86196924,2589.4,2589.0,8.998]
[1749135881702,20.23110521,2589.4,2589.0,8.998]
[1749135882102,19.86196924,2589.4,2589.0,8.998]
[1749135882407,3.86205331,2589.3,2589.0,8.998]
[1749135882609,19.23585344,2589.4,2589.0,8.998]
[1749135882815,19.60510776,2589.4,2589.0,8.998]
[1749135883171,7.78,2589.6,2589.1,3.8622517]
[1749135883410,17.82705884,2589.7,2588.9,8.337]
[1749135883710,3.86212245,2589.3,2588.9,8.337]
[1749135883867,3.8621578,2589.3,2589.0,2.028]
[1749135884093,3.86234598,2589.1,2589.0,2.028]
[1749135884449,19.86234598,2589.1,2589.0,8.984]
[1749135884753,29.54017207,2589.1,2589.0,8.984]
[1749135884901,13.54017207,2589.1,2589.0,8.984]
[1749135885919,13.54017207,2589.1,2589.0,2.028]
[1749135886117,15.5378007,2589.1,2589.0,8.983]
[1749135886635,15.9072203,2589.1,2589.0,2.028]
[1749135886799,15.9072203,2589.1,2589.0,8.982]
[1749135886994,31.9072203,2589.1,2589.0,8.982]
[1749135888034,19.86249517,2589.0,2588.9,8.337]
[1749135888234,22.64412396,2589.0,2588.9,17.319]
[1749135888532,22.64427556,2589.0,2588.9,17.319]
[1749135889834,22.64448883,2589.0,2588.9,17.319]
[1749135890840,16.0,2588.7,2588.1,0.02]
[1749135891145,21.76891964,2588.2,2588.1,0.02]
[1749135891312,21.58870411,2588.2,2588.1,0.02]
[1749135891731,21.12647352,2588.2,2588.1,0.02]
[1749135892409,21.12647352,2588.2,2588.1,2.048]
[1749135893011,21.67647352,2588.2,2588.1,0.02]
[1749135893257,21.67647352,2588.2,2587.1,0.02]
[1749135893258,3.86518243,2587.2,2587.1,0.02]
[1749135893470,3.86518243,2587.2,2587.1,2.048]
[1749135894311,19.86510821,2587.3,2587.1,2.048]
[1749135894511,3.86518243,2587.2,2587.1,2.048]
[1749135896234,3.86509115,2587.3,2587.1,2.048]
[1749135896630,3.86481455,2587.5,2587.1,2.048]
[1749135896938,4.71989572,2587.9,2587.3,3.86498774]
[1749135897132,0.8557,2588.1,2587.4,10.8148661]
[1749135897371,3.86432327,2587.8,2587.4,6.95]
[1749135897887,9.67782609,2587.9,2587.4,6.95]
[1749135898034,16.0,2587.8,2587.4,6.95]
[1749135898368,3.8645051,2587.7,2587.4,6.95]
[1749135898667,19.86430356,2587.8,2587.4,6.95]
[1749135898668,3.86405904,2588.0,2587.4,10.81484545]
[1749135898854,13.54160814,2588.2,2587.4,10.81484545]
[1749135898855,16.0,2587.9,2587.5,3.86464633]
[1749135899176,19.86400472,2588.0,2587.4,11.89628903]
[1749135899361,16.0,2588.0,2587.4,11.89632164]
[1749135899566,3.86392198,2588.1,2587.5,3.86472436]
[1749135899926,20.24390226,2588.2,2587.5,3.86472436]
[1749135900118,3.86390544,2588.1,2587.5,3.86472436]
[1749135900971,1.6,2587.9,2587.5,3.86472436]
[1749135901363,6.01058206,2587.9,2587.1,3.33445547]
[1749135901572,3.86456941,2587.7,2587.2,6.949]
[1749135901773,9.67782609,2587.7,2587.1,2.048]
[1749135902068,4.91837474,2587.6,2587.2,6.949]
[1749135902229,3.86502438,2587.4,2587.2,6.949]
[1749135902430,3.86501552,2587.4,2587.3,6.948]
[1749135902662,3.86501552,2587.4,2587.1,2.048]
[1749135902663,3.86518243,2587.2,2587.1,0.02]
[1749135902828,3.86518243,2587.2,2587.1,8.997]
[1749135903750,3.86503155,2587.4,2587.1,8.997]
[1749135903915,3.86518243,2587.2,2587.1,8.997]
[1749135904617,9.67782609,2587.3,2587.1,8.997]
[1749135904818,3.86494682,2587.4,2587.1,8.997]
[1749135905640,13.54300852,2587.2,2587.1,2.049]
[1749135905856,15.36827947,2587.2,2587.1,2.049]
[1749135906622,15.36827947,2587.2,2587.1,0.02]
[1749135906861,31.36827947,2587.2,2587.1,2.049]
[1749135907723,31.36827947,2587.2,2586.6,8.339]
[1749135907724,3.86592956,2586.7,2586.6,8.339]
[1749135908087,15.22972934,2586.7,2586.6,10.368]
[1749135910138,3.86667697,2586.2,2586.1,0.02]
[1749135910362,14.42380306,2586.2,2586.1,0.02]
[1749135910934,3.86697602,2586.0,2585.9,2.034]
[1749135911323,13.54480211,2586.0,2585.9,2.034]
[1749135912465,14.40420211,2586.0,2585.9,2.034]
[1749135913547,4.72637602,2586.0,2585.9,2.034]
[1749135913752,14.40420211,2586.0,2585.9,2.034]
[1749135913952,15.74055805,2586.0,2585.9,2.034]
[1749135914942,15.74055805,2586.0,2585.6,10.364]
[1749135914943,3.86742468,2585.7,2585.6,10.364]
[1749135915125,3.86787344,2585.4,2585.3,2.024]
[1749135915326,13.54569953,2585.4,2585.3,2.024]
[1749135915731,14.93419953,2585.4,2585.3,2.024]
[1749135915929,3.86817267,2585.2,2585.0,0.005]
[1749135916125,3.86817267,2585.2,2584.7,0.02190647]
[1749135916126,3.86847195,2585.0,2584.7,0.02190647]
[1749135916362,9.67782609,2584.8,2584.4,6.945]
[1749135916568,3.86907376,2584.6,2584.4,6.945]
[1749135916731,13.54661537,2584.8,2584.4,6.945]
[1749135916732,9.67782609,2584.8,2584.4,6.945]
[1749135917063,3.86892246,2584.7,2584.4,6.945]
[1749135917264,3.86892916,2584.7,2584.4,6.945]
[1749135917567,4.26029362,2584.9,2584.4,6.945]
[1749135917766,0.8385,2585.1,2584.4,8.02646093]
[1749135917969,7.78,2585.2,2584.5,19.86919073]
[1749135918200,13.54608702,2585.2,2584.6,10.81297794]
[1749135918399,9.67782609,2585.2,2584.7,3.86884189]
[1749135918895,9.67782609,2585.3,2584.9,3.86857688]
[1749135919100,9.67782609,2585.3,2585.0,6.945]
[1749135919895,3.86825403,2585.2,2585.0,6.945]
[1749135920198,0.9118,2585.1,2584.3,3.86943775]
[1749135920397,9.67782609,2584.4,2584.3,3.86951979]
[1749135920601,9.67782609,2584.4,2584.3,6.944]
[1749135920775,9.67782609,2584.4,2584.1,0.02]
[1749135920975,9.67782609,2584.4,2584.2,6.944]
[1749135921864,13.54681483,2584.7,2584.2,10.81363839]
[1749135922066,15.32705386,2584.7,2584.2,6.944]
[1749135922397,11.45806512,2584.7,2584.2,10.8136348]
[1749135922599,9.67782609,2584.7,2584.2,6.944]
[1749135923115,3.8690781,2584.6,2584.1,3.88980937]
[1749135923293,13.54682317,2584.7,2584.3,8.964]
[1749135923499,3.86879414,2584.8,2584.3,12.8334617]
[1749135923700,13.54662023,2584.8,2584.3,8.964]
[1749135923905,13.54662023,2584.8,2584.3,12.83346897]
[1749135924370,9.67782609,2584.8,2584.4,2.02]
[1749135924772,0.9118,2585.1,2584.4,2.02]
[1749135924773,0.8843,2585.4,2584.4,2.02]
[1749135925010,0.8843,2585.4,2584.4,3.33012548]
[1749135925180,14.43005529,2585.4,2584.8,3.86866359]
[1749135925525,0.8632,2585.7,2585.2,3.86809315]
[1749135925724,13.54503912,2585.9,2585.3,8.963]
[1749135926023,3.86727715,2585.8,2585.4,6.943]
[1749135926321,16.28620986,2585.9,2585.4,6.943]
[1749135926514,16.28626543,2585.9,2585.4,6.943]
[1749135926716,3.86727549,2585.8,2585.4,6.943]
[1749135927139,12.43907376,2585.9,2585.4,6.943]
[1749135927427,0.02,2585.9,2585.5,3.86761111]
[1749135927729,0.02,2585.9,2585.5,13.88852996]
[1749135928021,0.8,2585.7,2585.5,10.02085293]
[1749135928224,0.8,2585.7,2585.5,12.21871738]
[1749135928444,0.8,2585.7,2585.5,8.351]
[1749135928589,0.8,2585.7,2585.6,3.86757425]
[1749135928790,0.8,2585.7,2585.5,8.351]
[1749135929024,0.8,2585.7,2585.6,3.86757425]
[1749135929603,0.8,2585.7,2585.5,10.0824]
[1749135929828,0.8,2585.7,2585.6,6.941]
[1749135930041,0.8,2585.7,2585.5,8.351]
[1749135930223,0.8,2585.7,2585.6,6.94]
[1749135930431,3.86757425,2585.6,2585.5,8.351]
[1749135930746,3.86757425,2585.6,2585.5,15.291]
[1749135930747,13.54540034,2585.6,2585.5,15.291]
[1749135930951,9.67782609,2585.6,2585.5,15.291]
[1749135931727,4.66742594,2585.7,2585.5,15.291]
[1749135932004,0.8,2585.7,2585.5,15.291]
[1749135934169,0.8,2585.7,2585.5,19.15867697]
[1749135934332,0.8,2585.7,2585.5,15.291]
[1749135934839,0.8,2585.7,2585.5,19.15863999]
[1749135935067,0.8,2585.7,2585.6,3.86757425]
[1749135935267,0.02,2585.9,2585.6,3.86757425]
[1749135935468,3.86738114,2585.8,2585.5,15.291]
[1749135935879,9.69782609,2585.9,2585.5,15.291]
[1749135936168,13.56502637,2585.9,2585.5,15.291]
[1749135936332,13.5650058,2585.9,2585.6,8.956]
[1749135936537,12.21901515,2585.9,2585.6,8.956]
[1749135936735,3.86742468,2585.7,2585.6,2.02]
[1749135936935,3.86742468,2585.7,2585.6,8.956]
[1749135937168,3.86735664,2585.8,2585.6,8.956]
[1749135937552,16.08619626,2585.9,2585.6,8.956]
[1749135937875,12.21901515,2585.9,2585.6,8.956]
[1749135938048,9.69782609,2585.9,2585.6,8.956]
[1749135938638,0.02,2585.9,2585.6,12.82350155]
[1749135938841,0.02,2585.9,2585.6,8.956]
[1749135939840,3.88714284,2585.9,2585.6,2.02]
[1749135940036,3.86742468,2585.7,2585.6,2.02]
[1749135940282,1.74325934,2585.7,2585.6,8.954]
[1749135940486,0.02,2585.9,2585.6,8.954]
[1749135941207,0.02,2585.9,2585.6,12.82151398]
[1749135941584,13.54525077,2585.7,2585.6,2.02]
[1749135941797,14.90177585,2585.7,2585.6,2.02]
[1749135942108,14.90183445,2585.7,2585.6,2.009]
[1749135942408,0.02,2585.9,2585.6,2.009]
[1749135942704,9.69782609,2585.9,2585.6,2.009]
[1749135942909,0.02,2585.9,2585.6,2.009]
[1749135944273,9.67782609,2585.8,2585.6,2.009]
[1749135944730,0.02,2585.9,2585.6,5.87657268]
[1749135945010,0.02,2585.9,2585.8,3.86727511]
[1749135945173,0.02,2585.9,2585.8,16.0]
[1749135945380,0.02,2585.9,2585.8,28.80727511]
[1749135946090,0.02,2585.9,2585.8,29.35727511]
[1749135946279,0.02,2585.9,2585.8,32.85368682]
[1749135946903,0.02,2585.9,2585.8,23.36368682]
[1749135947108,0.02,2585.9,2585.8,28.80627511]
[1749135948733,0.02,2585.9,2585.8,29.35627511]
[1749135949235,0.02,2585.9,2585.8,58.43373111]
[1749135949918,0.02,2586.9,2586.8,3.86578011]
[1749135950118,0.02,2586.9,2586.8,21.53735812]
[1749135950318,0.02,2586.9,2586.8,22.08735812]
[1749135950524,0.02,2586.9,2586.8,21.53735812]
[1749135951409,0.02,2586.9,2586.8,10.74457801]
[1749135951645,0.02,2586.9,2586.8,21.15078011]
[1749135953760,0.02,2586.9,2586.8,8.349]
[1749135953956,0.02,2586.9,2586.8,21.14778011]
[1749135954443,0.02,2586.9,2586.8,17.282]
[1749135954642,0.02,2586.9,2586.8,17.281]
[1749135954841,0.02,2586.9,2586.8,22.87488011]
[1749135955041,0.02,2586.9,2586.8,19.0081]
[1749135955258,0.02,2586.9,2586.8,15.95088011]
[1749135955434,0.02,2586.9,2586.8,22.87388011]
[1749135955641,0.02,2586.9,2586.8,22.87288011]
[1749135955837,0.02,2586.9,2586.8,19.0071]
[1749135956040,0.02,2586.9,2586.8,17.279]
[1749135956668,0.02,2586.9,2586.8,10.357]
[1749135956973,0.02,2586.9,2586.8,17.279]
[1749135958038,3.88563067,2586.9,2586.8,10.357]
[1749135958375,3.88563067,2586.9,2584.4,5.02422548]
[1749135958376,0.9135,2586.8,2584.4,5.02422548]
[1749135958530,9.67782609,2585.9,2585.1,3.86831542]
[1749135958727,9.67782609,2585.9,2585.6,3.86748637]
[1749135958944,9.67782609,2586.2,2585.8,3.86721112]
[1749135959143,0.9135,2586.3,2585.9,10.354]
[1749135959367,4.78003488,2586.3,2585.9,10.354]
[1749135959944,3.86668467,2586.2,2585.9,10.354]
[1749135960268,4.78002997,2586.3,2586.0,6.92]
[1749135961064,3.86633707,2586.5,2586.0,6.92]
[1749135961065,0.8289,2586.5,2586.0,6.92]
[1749135961270,3.86583792,2586.8,2586.0,6.92]
[1749135961271,3.86614877,2586.6,2586.0,8.6474]
[1749135961472,8.52422965,2586.3,2585.9,8.346]
[1749135961681,12.39078812,2586.3,2586.0,2.009]
[1749135961831,8.52422965,2586.3,2586.0,8.928]
[1749135962364,3.86647127,2586.4,2586.0,8.928]
[1749135962532,3.86631318,2586.5,2586.0,8.928]
[1749135962731,3.8661449,2586.6,2586.0,8.928]
[1749135962970,1.2172618,2586.9,2586.1,3.86675624]
[1749135962971,3.86586497,2586.8,2586.1,3.86675624]
[1749135963129,3.86586497,2586.8,2585.9,12.21300192]
[1749135963130,8.52422965,2586.6,2585.9,8.346]
[1749135963336,3.86697602,2586.0,2585.9,8.346]
[1749135963540,3.86697602,2586.0,2585.9,17.273]
[1749135964177,3.86675697,2586.2,2585.9,17.273]
[1749135964383,3.86661977,2586.3,2585.9,17.273]
[1749135964742,3.86684703,2586.1,2585.9,17.273]
[1749135964945,3.86697602,2586.0,2585.9,10.355]
[1749135965144,3.86697602,2586.0,2585.9,17.273]
[1749135965668,4.73027602,2586.0,2585.9,17.273]
[1749135966042,4.73027602,2586.0,2585.9,17.272]
[1749135966574,6.44241173,2586.0,2585.9,10.355]
[1749135966778,6.44241173,2586.0,2585.9,17.272]
[1749135967766,6.44241173,2586.0,2585.9,8.346]
[1749135967944,3.86834431,2585.1,2585.0,8.348]
[1749135968138,3.86808455,2585.3,2585.0,10.357]
[1749135968342,12.39240232,2585.2,2585.1,6.917]
[1749135968994,3.8683223,2585.1,2585.0,10.357]
[1749135969158,5.96946253,2585.1,2585.0,10.357]
[1749135969566,5.96946253,2585.1,2585.0,17.273]
[1749135969872,5.96946253,2585.1,2585.0,10.357]
[1749135970077,5.96946253,2585.1,2585.0,17.274]
[1749135970462,6.36309575,2585.1,2585.0,17.274]
[1749135970785,0.8619,2585.1,2585.0,17.274]
[1749135971013,4.7302223,2585.1,2585.0,17.274]
[1749135971568,4.7302223,2585.1,2585.0,17.273]
[1749135972504,13.25445195,2585.1,2585.0,17.273]
[1749135973011,16.0,2585.4,2585.0,17.273]
[1749135973320,3.8683223,2585.1,2585.0,17.273]
[1749135974297,5.1075775,2585.1,2585.0,10.357]
[1749135974502,5.1075775,2585.1,2585.0,17.272]
[1749135974700,3.8683223,2585.1,2585.0,17.272]
[1749135976097,4.7032223,2585.1,2585.0,17.272]
[1749135978455,1.3056225,2585.3,2585.0,17.272]
[1749135978594,0.8984,2585.7,2585.0,17.272]
[1749135978793,3.86812284,2585.3,2585.0,17.272]
[1749135979493,14.99556916,2585.1,2585.0,8.348]
[1749135979692,14.99556916,2585.1,2585.0,17.261]
[1749135980133,14.99556916,2585.1,2585.0,10.347]
[1749135980321,3.86862161,2584.9,2584.8,1.999]
[1749135980534,3.86862161,2584.9,2584.1,8.371]
[1749135980535,3.86927026,2584.5,2584.1,8.371]
[1749135980702,9.70824686,2584.3,2584.2,8.912]
[1749135982645,9.70824686,2584.3,2584.2,8.913]
[1749135983242,0.8356,2584.6,2584.2,8.912]
[1749135983445,9.70824686,2584.9,2584.2,12.78160199]
[1749135983743,9.70824686,2584.9,2584.4,3.86937006]
[1749135983944,9.70824686,2584.9,2584.6,3.86901579]
[1749135984142,9.70824686,2584.9,2584.7,10.78091768]
[1749135984511,0.5,2585.1,2584.8,3.86877127]
[1749135984710,0.5,2585.1,2584.9,8.911]
[1749135985569,0.5,2585.1,2585.0,5.86847195]
[1749135986034,9.70824686,2585.5,2585.0,2.97371323]
[1749135986209,18.41224686,2586.0,2585.5,3.86764626]
[1749135986405,18.41224686,2586.0,2585.6,3.86756225]
[1749135986606,7.78,2586.0,2585.7,12.7783712]
[1749135986854,9.70824686,2585.9,2585.7,8.911]
[1749135987162,9.70824686,2585.9,2585.8,6.91]
[1749135987522,20.17326799,2586.0,2585.8,6.91]
[1749135987756,16.30629153,2586.0,2585.8,6.91]
[1749135988526,3.86712556,2585.9,2585.8,6.91]
[1749135988755,20.17340827,2586.0,2585.8,6.91]
[1749135988926,16.30629153,2586.0,2585.8,6.91]
[1749135989124,20.17334455,2586.0,2585.8,6.91]
[1749135989325,3.86712859,2585.9,2585.7,2.0]
[1749135989512,7.78,2586.0,2585.9,6.908]
[1749135990845,7.78,2586.0,2585.7,2.0]
[1749135991046,20.17337448,2586.0,2585.8,6.907]
[1749135991245,16.30629153,2586.0,2585.8,6.907]
[1749135991552,18.32360781,2586.0,2585.9,1.999]
[1749135991864,22.19058383,2586.0,2585.9,8.905]
[1749135993661,23.06788383,2586.0,2585.9,1.999]
[1749135994055,39.06788383,2586.0,2585.9,1.999]
[1749135994371,39.43667083,2586.0,2585.9,1.999]
[1749135994659,4.74897425,2585.6,2585.5,8.352]
[1749135994861,14.13690838,2585.6,2585.5,17.256]
[1749135995562,14.13690838,2585.6,2585.5,10.351]
[1749135996081,30.13690838,2585.6,2585.5,10.351]
[1749135996378,30.50569538,2585.6,2585.5,10.351]
[1749135998137,30.13690838,2585.6,2585.5,17.254]
[1749135999292,30.50600585,2585.6,2585.5,17.254]
[1749135999447,30.50600585,2585.6,2585.5,17.253]
[1749136000271,21.97971432,2585.6,2585.5,17.253]
[1749136000473,30.50600585,2585.6,2585.5,17.253]
[1749136001377,21.61061685,2585.6,2585.5,17.253]
[1749136001555,19.86757425,2585.6,2585.5,17.253]
[1749136002784,19.86757425,2585.6,2585.5,17.252]
[1749136002969,20.23672346,2585.6,2585.5,17.252]
[1749136003746,20.23672346,2585.6,2585.5,17.251]
[1749136003964,20.23672346,2585.6,2585.5,10.351]
[1749136004158,23.58905013,2585.6,2585.5,17.251]
[1749136004476,3.86757425,2585.6,2585.5,17.251]
[1749136004652,12.39380229,2585.7,2585.5,17.251]
[1749136004985,3.86757425,2585.6,2585.5,17.251]
[1749136005277,8.52629153,2585.7,2585.5,17.251]
[1749136005479,3.86757425,2585.6,2585.5,17.251]
[1749136006184,5.61990089,2585.6,2585.5,17.25]
[1749136006938,5.61990089,2585.6,2585.5,10.351]
[1749136007143,5.61990089,2585.6,2584.5,8.351]
[1749136007144,3.86884227,2584.8,2584.5,8.351]
[1749136007378,3.86884227,2584.8,2584.6,8.887]
[1749136007379,8.52629153,2584.8,2584.6,8.887]
[1749136007583,12.3951236,2584.8,2584.6,8.887]
[1749136007784,3.86892095,2584.7,2584.6,1.989]
[1749136007958,8.52629153,2584.8,2584.6,8.887]
[1749136008158,3.86892095,2584.7,2584.6,8.887]
[1749136008522,3.86892095,2584.7,2584.6,1.989]
[1749136008688,5.58040047,2584.7,2584.6,1.989]
[1749136008984,5.58040047,2584.7,2584.6,8.887]
[1749136009277,15.29427929,2584.7,2584.6,8.887]
[1749136009890,13.58279977,2584.7,2584.6,8.886]
[1749136010092,9.71387882,2584.9,2584.6,8.886]
[1749136010294,13.58229828,2585.1,2584.6,8.886]
[1749136010589,9.71387882,2585.1,2584.6,8.886]
[1749136010891,9.71387882,2584.8,2584.5,8.351]
[1749136011080,13.58274469,2584.8,2584.6,1.989]
[1749136011281,3.86892095,2584.7,2584.6,8.886]
[1749136011595,3.86892095,2584.7,2584.6,8.885]
[1749136011897,13.58270835,2584.8,2584.6,8.885]
[1749136012066,1.35827084,2584.7,2584.5,8.351]
[1749136012275,3.86871026,2584.9,2584.7,1.989]
[1749136012476,13.58265009,2584.8,2584.7,1.989]
[1749136012784,9.71387882,2584.8,2584.7,8.885]
[1749136013290,9.71387882,2585.1,2584.7,8.885]
[1749136013669,13.58224271,2585.1,2584.7,8.885]
[1749136014005,9.71387882,2585.4,2584.7,9.61605503]
[1749136014186,9.71387882,2585.1,2584.7,9.61605503]
[1749136014504,9.71387882,2585.1,2584.7,12.75380801]
[1749136014877,9.71387882,2585.1,2584.7,8.885]
[1749136015206,9.71387882,2585.1,2584.7,12.75388261]
[1749136016199,9.71387882,2585.1,2584.7,12.75383779]
[1749136016597,9.71387882,2585.1,2584.8,3.86875003]
[1749136016793,9.71387882,2585.1,2584.9,6.894]
[1749136017706,4.2372009,2585.5,2584.9,10.76247668]
[1749136018005,9.71387882,2585.5,2585.0,3.86847049]
[1749136018208,13.58163872,2585.5,2585.1,6.893]
[1749136018518,10.08347248,2585.5,2585.1,6.893]
[1749136018708,17.49387882,2585.6,2585.1,6.893]
[1749136018890,17.49387882,2585.6,2584.5,12.22011662]
[1749136018891,3.8684056,2585.1,2584.5,12.22011662]
[1749136019211,9.71387882,2585.0,2584.6,2.34590367]
[1749136019366,9.71387882,2585.0,2584.7,0.35699806]
[1749136019566,9.71387882,2585.0,2584.6,12.75000802]
[1749136019821,0.3695717,2585.5,2584.6,11.43301393]
[1749136020138,9.71387882,2585.4,2584.9,3.86852701]
[1749136020298,9.71387882,2585.4,2585.0,10.76047164]
[1749136020500,9.71387882,2585.4,2585.1,10.76028642]
[1749136020799,3.86739661,2585.8,2585.3,3.86801158]
[1749136021100,9.71387882,2585.6,2585.4,8.88]
[1749136021300,9.71387882,2585.6,2585.5,1.989]
[1749136021821,9.71387882,2585.8,2585.5,1.989]
[1749136022017,10.08345052,2586.1,2585.7,3.86727968]
[1749136022187,9.71387882,2586.1,2585.8,15.243]
[1749136023714,3.86712556,2585.9,2585.8,8.352]
[1749136023912,13.58075241,2586.1,2585.9,6.89]
[1749136024117,9.71387882,2586.1,2585.9,6.89]
[1749136024419,9.71387882,2586.1,2585.9,10.75709223]
[1749136024617,9.71387882,2586.1,2585.9,6.89]
[1749136027112,9.71387882,2586.1,2585.9,10.75710012]
[1749136027424,9.71387882,2586.1,2585.9,6.89]
[1749136029420,9.71387882,2586.1,2585.9,10.75711901]
[1749136029621,9.71387882,2586.1,2585.9,10.75712477]
[1749136029824,9.71387882,2586.3,2586.0,3.8668934]
[1749136030032,9.71387882,2586.3,2585.9,7.73763779]
[1749136030324,9.71387882,2586.0,2585.9,6.89]
[1749136030497,9.71387882,2586.0,2585.8,8.352]
[1749136030698,3.86712556,2585.9,2585.8,8.352]
[1749136031228,3.86712556,2585.9,2585.8,17.225]
[1749136031908,3.86712556,2585.9,2585.8,8.352]
[1749136032110,1.83043821,2585.9,2585.8,17.213]
[1749136032316,13.58089237,2586.0,2585.8,17.213]
[1749136032630,9.71387882,2586.0,2585.8,17.213]
[1749136032809,13.58088625,2586.0,2585.8,17.213]
[1749136033691,9.71387882,2586.0,2585.8,17.213]
[1749136034026,3.86712556,2585.9,2585.8,10.33]
[1749136034327,5.69757608,2585.9,2585.8,17.212]
[1749136034928,5.69757608,2585.9,2585.8,10.33]
[1749136035128,3.86799363,2585.4,2585.3,8.349]
[1749136035328,3.86799363,2585.4,2585.3,17.209]
[1749136035329,13.58187245,2585.4,2585.3,17.209]
[1749136035533,13.58187245,2585.4,2585.3,17.208]
[1749136035852,13.58187245,2585.4,2585.3,10.327]
[1749136035853,9.71387882,2585.4,2585.3,10.327]
[1749136036059,13.58175226,2585.4,2585.3,17.208]
[1749136036254,9.71387882,2585.4,2585.3,17.208]
[1749136040072,9.71387882,2585.4,2585.3,21.07602305]
[1749136040621,9.71387882,2585.4,2585.3,17.208]